fUSD/lending_fUSD_20241227
["ID","MTS","AMOUNT","RATE_DAILY","PERIOD"]
[346888415,1735342233308,-500.0,0.00010759,2]
[346888416,1735342233318,-500.0,0.00010759,2]
[346888417,1735342233327,-500.0,0.00010759,2]
[346888418,1735342233336,-500.0,0.00010759,2]
[346888419,1735342233347,-500.0,0.00010759,2]
[346888420,1735342233356,-500.0,0.00010759,2]
[346888421,1735342233366,-500.0,0.00010759,2]
[346888422,1735342233376,-500.0,0.00010759,2]
[346888423,1735342233385,-500.0,0.00010759,2]
[346888424,1735342233394,-500.0,0.00010759,2]
[346888425,1735342233404,-2086.26,0.0001076,2]
[346888426,1735342233413,-536.03,0.0001076,2]
[346888427,1735342233427,-524.33,0.0001076,2]
[346888428,1735342233436,-500.0,0.0001076,2]
[346888429,1735342233446,-632.31,0.0001076,2]
[346888430,1735342233455,-500.0,0.0001076,2]
[346888431,1735342233464,-500.0,0.0001076,2]
[346888432,1735342233474,-500.0,0.0001076,2]
[346888433,1735342233484,-500.0,0.0001076,2]
[346888434,1735342233494,-500.0,0.0001076,2]
[346888435,1735342233503,-602.05,0.0001076,2]
[346888436,1735342233512,-657.71,0.0001076,2]
[346888437,1735342233522,-585.17,0.0001076,2]
[346888438,1735342233531,-1064.16,0.0001076,2]
[346888439,1735342233540,-770.49,0.0001076,2]
[346888440,1735342233550,-3295.87,0.0001076,2]
[346888441,1735342233559,-2330.57,0.0001076,2]
[346888442,1735342233568,-500.0,0.0001076,2]
[346888443,1735342233578,-949.35,0.0001076,2]
[346888444,1735342233588,-5610.32,0.0001076,2]
[346888445,1735342233597,-735.15,0.0001076,2]
[346888446,1735342233607,-1361.98,0.0001076,2]
[346888447,1735342233617,-500.0,0.0001076,2]
[346888448,1735342233626,-500.0,0.0001076,2]
[346888449,1735342233636,-772.12,0.0001076,2]
[346888450,1735342233645,-949.29,0.0001076,2]
[346888451,1735342233655,-1571.21,0.0001076,2]
[346888452,1735342233664,-500.0,0.0001076,2]
[346888453,1735342233674,-1144.56,0.0001076,2]
[346888454,1735342233683,-700.92,0.0001076,2]
[346888455,1735342233694,-500.0,0.0001076,2]
[346888456,1735342233703,-777.11,0.0001076,2]
[346888457,1735342233712,-715.6,0.0001076,2]
[346888458,1735342233722,-4478.02,0.0001076,2]
[346888459,1735342233731,-2186.44,0.0001076,2]
[346888460,1735342233741,-500.0,0.0001076,2]
[346888461,1735342233750,-1781.52,0.0001076,2]
[346888462,1735342233760,-500.0,0.0001076,2]
[346888463,1735342233769,-513.66,0.0001076,2]
[346888464,1735342233780,-1362.54,0.0001076,2]
[346888465,1735342233789,-500.0,0.0001076,2]
[346888466,1735342233799,-856.54,0.0001076,2]
[346888467,1735342233808,-2792.66,0.0001076,2]
[346888468,1735342233817,-688.92,0.0001076,2]
[346888469,1735342233827,-500.0,0.0001076,2]
[346888470,1735342233836,-500.0,0.0001076,2]
[346888471,1735342233848,-850.32,0.0001076,2]
[346888472,1735342233857,-1175.08,0.0001076,2]
[346888473,1735342233867,-3071.52,0.0001076,2]
[346888474,1735342233876,-500.0,0.0001076,2]
[346888475,1735342233886,-500.0,0.0001076,2]
[346888476,1735342233895,-500.0,0.0001076,2]
[346888477,1735342233904,-500.0,0.0001076,2]
[346888478,1735342233913,-918.0,0.0001076,2]
[346888479,1735342233923,-755.95,0.0001076,2]
[346888480,1735342233932,-500.0,0.00010761,2]
[346888481,1735342233942,-500.0,0.00010761,2]
[346888482,1735342233951,-500.0,0.00010761,2]
[346888483,1735342233961,-851.93,0.00010761,2]
[346888484,1735342233971,-1385.19,0.00010761,2]
[346888485,1735342233980,-1300.0,0.00010852,2]
[346888486,1735342233990,-600.0,0.00010852,2]
[346888487,1735342233999,-397.75,0.00010879,2]
[346888488,1735342234008,-187.99806168,0.000109,2]
[346888489,1735342234017,-500.0,0.00010909,2]
[346888490,1735342234027,-500.0,0.00010909,2]
[346888491,1735342234036,-500.0,0.00010909,2]
[346888492,1735342234045,-592.37,0.00010909,2]
[346888493,1735342234055,-1226.06,0.00010909,2]
[346888494,1735342234064,-569.52,0.00010909,2]
[346888495,1735342234074,-604.47,0.00010909,2]
[346888496,1735342234083,-1179.85,0.00010909,2]
[346888497,1735342234092,-640.07,0.00010909,2]
[346888498,1735342234102,-500.0,0.00010909,2]
[346888499,1735342234111,-986.905457,0.00010909,2]
[346888500,1735342234121,-3974.64,0.00010909,2]
[346888501,1735342234130,-962.904779,0.00010909,2]
[346888502,1735342234139,-500.0,0.00010909,2]
[346888503,1735342234149,-500.83,0.00010909,2]
[346888504,1735342234158,-500.0,0.00010909,2]
[346888505,1735342234167,-500.0,0.0001091,2]
[346888506,1735342234176,-500.0,0.0001091,2]
[346888507,1735342234186,-500.0,0.0001091,2]
[346888508,1735342234195,-500.0,0.0001091,2]
[346888509,1735342234204,-500.0,0.0001091,2]
[346888510,1735342234213,-248.59443097,0.0001091,2]
[346888511,1735342234223,-500.0,0.0001091,2]
[346888512,1735342234233,-500.0,0.0001091,2]
[346888513,1735342234242,-500.0,0.0001091,2]
[346888514,1735342234251,-500.0,0.0001091,2]
[346888515,1735342234260,-500.0,0.0001091,2]
[346888516,1735342234269,-500.0,0.0001091,2]
[346888517,1735342234279,-500.0,0.0001091,2]
[346888518,1735342234288,-500.0,0.0001091,2]
[346888519,1735342234298,-500.0,0.0001091,2]
[346888520,1735342234307,-500.0,0.0001091,2]
[346888521,1735342234316,-500.0,0.0001091,2]
[346888522,1735342234325,-500.0,0.0001091,2]
[346888523,1735342234335,-500.0,0.0001091,2]
[346888524,1735342234344,-312.99112456,0.0001091,2]
[346888525,1735342234355,-500.0,0.0001091,2]
[346888526,1735342234364,-500.0,0.0001091,2]
[346888527,1735342234373,-500.0,0.0001091,2]
[346888528,1735342234383,-500.0,0.0001091,2]
[346888529,1735342234392,-482.9830935,0.0001091,2]
[346888530,1735342234401,-500.0,0.0001091,2]
[346888531,1735342234411,-500.0,0.0001091,2]
[346888532,1735342234420,-500.0,0.0001091,2]
[346888533,1735342234435,-500.0,0.0001091,2]
[346888534,1735342234445,-500.0,0.0001091,2]
[346888535,1735342234455,-500.0,0.0001091,2]
[346888536,1735342234467,-500.0,0.0001091,2]
[346888537,1735342234476,-768.26,0.0001091,2]
[346888538,1735342234486,-500.0,0.0001091,2]
[346888539,1735342234495,-500.0,0.0001091,2]
[346888540,1735342234507,-500.0,0.0001091,2]
[346888541,1735342234516,-831.91,0.0001091,2]
[346888542,1735342234526,-500.0,0.0001091,2]
[346888543,1735342234535,-500.0,0.0001091,2]
[346888544,1735342234544,-500.0,0.0001091,2]
[346888545,1735342234554,-1007.4,0.0001091,2]
[346888546,1735342234564,-170.85465812,0.0001091,2]
[346888547,1735342234574,-500.0,0.0001091,2]
[346888548,1735342234585,-500.0,0.0001091,2]
[346888549,1735342234595,-500.0,0.0001091,2]
[346888550,1735342234605,-500.0,0.0001091,2]
[346888551,1735342234615,-724.18,0.0001091,2]
[346888552,1735342234625,-500.0,0.0001091,2]
[346888553,1735342234634,-500.0,0.0001091,2]
[346888554,1735342234643,-392.066556,0.0001091,2]
[346888555,1735342234653,-298.63120271,0.0001091,2]
[346888556,1735342234663,-500.0,0.0001091,2]
[346888557,1735342234673,-1146.05,0.0001091,2]
[346888558,1735342234683,-500.0,0.0001091,2]
[346888559,1735342234692,-500.0,0.0001091,2]
[346888560,1735342234702,-500.0,0.0001091,2]
[346888561,1735342234710,-784.36,0.0001091,2]
[346888562,1735342234719,-500.0,0.0001091,2]
[346888563,1735342234728,-1548.28,0.0001091,2]
[346888564,1735342234737,-500.0,0.0001091,2]
[346888565,1735342234747,-500.0,0.0001091,2]
[346888566,1735342234756,-2563.84,0.0001091,2]
[346888567,1735342234766,-500.0,0.0001091,2]
[346888568,1735342234775,-2173.22,0.0001091,2]
[346888569,1735342234784,-500.0,0.0001091,2]
[346888570,1735342234794,-500.0,0.0001091,2]
[346888571,1735342234803,-963.97,0.0001091,2]
[346888572,1735342234812,-500.0,0.0001091,2]
[346888573,1735342234821,-534.19,0.0001091,2]
[346888574,1735342234830,-500.0,0.0001091,2]
[346888575,1735342234839,-500.0,0.0001091,2]
[346888576,1735342234848,-500.0,0.0001091,2]
[346888577,1735342234857,-1039.22,0.0001091,2]
[346888578,1735342234865,-1707.61,0.0001091,2]
[346888579,1735342234875,-500.0,0.0001091,2]
[346888580,1735342234883,-500.0,0.0001091,2]
[346888581,1735342234892,-500.0,0.0001091,2]
[346888582,1735342234902,-500.0,0.0001091,2]
[346888583,1735342234911,-500.0,0.0001091,2]
[346888584,1735342234920,-500.0,0.0001091,2]
[346888585,1735342234929,-198.77294377,0.0001091,2]
[346888586,1735342234939,-1000.87,0.0001091,2]
[346888587,1735342234948,-9312.82,0.0001091,2]
[346888588,1735342234957,-500.0,0.0001091,2]
[346888589,1735342234966,-500.0,0.0001091,2]
[346888590,1735342234976,-500.0,0.0001091,2]
[346888591,1735342234985,-500.0,0.00010911,2]
[346888592,1735342234994,-1000.0,0.00010911,2]
[346888593,1735342235004,-621.4,0.00010911,2]
[346888594,1735342235014,-500.0,0.00010911,2]
[346888595,1735342235023,-1724.93,0.00010911,2]
[346888596,1735342235033,-872.49,0.00010911,2]
[346888597,1735342235043,-5000.0,0.00010933,2]
[346888598,1735342235052,-5827.4844,0.00010934,2]
[346888599,1735342235062,-21563.0,0.00010962,2]
[346888600,1735342235072,-4092.4779701,0.00011,2]
[346888601,1735342235081,-106941.91231805,0.00011,2]
[346888602,1735342235097,-468.43921911,0.00011,2]
[346888603,1735342235108,-462.45170532,0.00011,2]
[346888604,1735342235119,-45025.00980543,0.00011,2]
[346888605,1735342235130,-33303.6297,0.00011,2]
[346888606,1735342235148,-1276.63304039,0.00011,2]
[346888607,1735342235172,-509.22801043,0.00011,2]
[346888609,1735342238451,-72723.09070025,0.00011,2]
[346888610,1735342238460,-500.0,0.00011032,2]
[346888611,1735342238471,-500.0,0.00011032,2]
[346888612,1735342238480,-500.0,0.00011032,2]
[346888613,1735342238489,-500.0,0.00011032,2]
[346888614,1735342238499,-500.0,0.00011032,2]
[346888615,1735342238508,-500.0,0.00011032,2]
[346888616,1735342238518,-531.74693807,0.00011032,2]
[346888617,1735342238527,-500.0,0.00011032,2]
[346888618,1735342238536,-500.0,0.00011032,2]
[346888619,1735342238546,-500.0,0.00011032,2]
[346888620,1735342238555,-500.0,0.00011032,2]
[346888621,1735342238564,-500.0,0.00011032,2]
[346888622,1735342238573,-500.0,0.00011032,2]
[346888623,1735342238583,-500.0,0.00011032,2]
[346888624,1735342238592,-500.0,0.00011032,2]
[346888625,1735342238603,-500.0,0.00011032,2]
[346888626,1735342238612,-500.0,0.00011032,2]
[346888628,1735342238622,-500.0,0.00011032,2]
[346888630,1735342238632,-1633.4,0.00011032,2]
[346888632,1735342238641,-583.29,0.00011032,2]
[346888634,1735342238651,-579.44,0.00011032,2]
[346888636,1735342238660,-500.0,0.00011032,2]
[346888638,1735342238669,-1120.08,0.00011032,2]
[346888640,1735342238679,-500.0,0.00011032,2]
[346888642,1735342238689,-1180.73,0.00011032,2]
[346888644,1735342238698,-500.0,0.00011032,2]
[346888646,1735342238708,-500.0,0.00011032,2]
[346888648,1735342238717,-500.0,0.00011032,2]
[346888650,1735342238726,-500.0,0.00011032,2]
[346888652,1735342238736,-500.0,0.00011032,2]
[346888654,1735342238745,-500.0,0.00011032,2]
[346888656,1735342238755,-500.0,0.00011033,2]
[346888658,1735342238764,-500.0,0.00011033,2]
[346888660,1735342238774,-500.0,0.00011033,2]
[346888662,1735342238783,-500.0,0.00011033,2]
[346888664,1735342238793,-412.12165759,0.00011033,2]
[346888666,1735342238803,-500.0,0.00011033,2]
[346888668,1735342238812,-500.0,0.00011033,2]
[346888670,1735342238821,-500.0,0.00011033,2]
[346888672,1735342238831,-500.0,0.00011033,2]
[346888674,1735342238841,-500.0,0.00011033,2]
[346888676,1735342238850,-500.0,0.00011033,2]
[346888678,1735342238860,-500.0,0.00011033,2]
[346888680,1735342238870,-500.0,0.00011033,2]
[346888682,1735342238879,-500.0,0.00011033,2]
[346888683,1735342238889,-500.0,0.00011033,2]
[346888685,1735342238898,-500.0,0.00011033,2]
[346888688,1735342238909,-500.0,0.00011033,2]
[346888690,1735342238918,-500.0,0.00011033,2]
[346888692,1735342238928,-500.0,0.00011033,2]
[346888694,1735342238938,-500.0,0.00011033,2]
[346888696,1735342238948,-500.0,0.00011033,2]
[346888697,1735342238958,-500.0,0.00011033,2]
[346888700,1735342238969,-500.0,0.00011033,2]
[346888701,1735342238979,-500.0,0.00011033,2]
[346888703,1735342238989,-500.0,0.00011033,2]
[346888706,1735342238999,-500.0,0.00011033,2]
[346888708,1735342239008,-500.0,0.00011033,2]
[346888709,1735342239018,-500.0,0.00011033,2]
[346888712,1735342239027,-500.0,0.00011033,2]
[346888714,1735342239037,-500.0,0.00011033,2]
[346888715,1735342239046,-500.0,0.00011033,2]
[346888717,1735342239055,-500.0,0.00011033,2]
[346888719,1735342239065,-500.0,0.00011033,2]
[346888721,1735342239073,-623.14,0.00011033,2]
[346888723,1735342239083,-500.0,0.00011033,2]
[346888725,1735342239093,-500.0,0.00011033,2]
[346888727,1735342239102,-500.0,0.00011033,2]
[346888729,1735342239111,-500.0,0.00011033,2]
[346888731,1735342239120,-500.0,0.00011033,2]
[346888733,1735342239129,-500.0,0.00011033,2]
[346888735,1735342239138,-500.0,0.00011033,2]
[346888737,1735342239147,-500.0,0.00011033,2]
[346888739,1735342239157,-500.0,0.00011033,2]
[346888741,1735342239166,-500.0,0.00011033,2]
[346888743,1735342239176,-2086.26,0.00011034,2]
[346888745,1735342239185,-536.03,0.00011034,2]
[346888747,1735342239194,-524.33,0.00011034,2]
[346888748,1735342239203,-500.0,0.00011034,2]
[346888749,1735342239212,-632.31,0.00011034,2]
[346888750,1735342239221,-500.0,0.00011034,2]
[346888751,1735342239230,-590.4265554,0.00011034,2]
[346888752,1735342239239,-500.0,0.00011034,2]
[346888753,1735342239248,-500.0,0.00011034,2]
[346888754,1735342239257,-500.0,0.00011034,2]
[346888755,1735342239267,-602.05,0.00011034,2]
[346888756,1735342239275,-657.71,0.00011034,2]
[346888757,1735342239284,-585.17,0.00011034,2]
[346888758,1735342239293,-1064.16,0.00011034,2]
[346888760,1735342239303,-770.49,0.00011034,2]
[346888762,1735342239312,-3295.87,0.00011034,2]
[346888764,1735342239322,-2330.57,0.00011034,2]
[346888766,1735342239332,-500.0,0.00011034,2]
[346888768,1735342239341,-949.35,0.00011034,2]
[346888770,1735342239351,-5610.32,0.00011034,2]
[346888772,1735342239361,-735.15,0.00011034,2]
[346888774,1735342239370,-1361.98,0.00011034,2]
[346888776,1735342239379,-500.0,0.00011034,2]
[346888777,1735342239388,-500.0,0.00011034,2]
[346888780,1735342239398,-772.12,0.00011034,2]
[346888782,1735342239408,-949.29,0.00011034,2]
[346888784,1735342239417,-1571.21,0.00011034,2]
[346888786,1735342239431,-500.0,0.00011034,2]
[346888788,1735342239441,-1144.56,0.00011034,2]
[346888790,1735342239450,-777.11,0.00011034,2]
[346888792,1735342239459,-715.6,0.00011034,2]
[346888794,1735342239470,-4478.02,0.00011034,2]
[346888796,1735342239479,-2186.44,0.00011034,2]
[346888798,1735342239488,-500.0,0.00011034,2]
[346888800,1735342239497,-1781.52,0.00011034,2]
[346888801,1735342239507,-500.0,0.00011034,2]
[346888803,1735342239518,-513.66,0.00011034,2]
[346888805,1735342239527,-1362.54,0.00011034,2]
[346888807,1735342239536,-500.0,0.00011034,2]
[346888809,1735342239545,-856.54,0.00011034,2]
[346888811,1735342239555,-2792.66,0.00011034,2]
[346888813,1735342239564,-688.92,0.00011034,2]
[346888815,1735342239573,-500.0,0.00011034,2]
[346888817,1735342239582,-500.0,0.00011034,2]
[346888819,1735342239592,-850.32,0.00011034,2]
[346888821,1735342239601,-1175.08,0.00011034,2]
[346888823,1735342239610,-3071.52,0.00011034,2]
[346888825,1735342239620,-500.0,0.00011034,2]
[346888827,1735342239629,-500.0,0.00011034,2]
[346888829,1735342239638,-500.0,0.00011034,2]
[346888831,1735342239647,-500.0,0.00011034,2]
[346888833,1735342239656,-918.0,0.00011034,2]
[346888835,1735342239665,-755.95,0.00011034,2]
[346888837,1735342239675,-500.0,0.00011035,2]
[346888839,1735342239684,-500.0,0.00011035,2]
[346888841,1735342239694,-500.0,0.00011035,2]
[346888843,1735342239704,-851.93,0.00011035,2]
[346888846,1735342239713,-1385.19,0.00011035,2]
[346888848,1735342239723,-500.0,0.00011183,2]
[346888850,1735342239732,-500.0,0.00011183,2]
[346888852,1735342239742,-500.0,0.00011183,2]
[346888854,1735342239751,-592.37,0.00011183,2]
[346888856,1735342239760,-1226.06,0.00011183,2]
[346888858,1735342239769,-569.52,0.00011183,2]
[346888860,1735342239779,-604.47,0.00011183,2]
[346888862,1735342239788,-1179.85,0.00011183,2]
[346888864,1735342239798,-640.07,0.00011183,2]
[346888866,1735342239808,-500.0,0.00011183,2]
[346888868,1735342239817,-986.905457,0.00011183,2]
[346888870,1735342239826,-962.904779,0.00011183,2]
[346888871,1735342239835,-3974.64,0.00011183,2]
[346888873,1735342239844,-500.0,0.00011183,2]
[346888875,1735342239853,-500.83,0.00011183,2]
[346888877,1735342239863,-500.0,0.00011183,2]
[346888879,1735342239872,-500.0,0.00011184,2]
[346888881,1735342239881,-500.0,0.00011184,2]
[346888883,1735342239890,-500.0,0.00011184,2]
[346888885,1735342239899,-500.0,0.00011184,2]
[346888887,1735342239908,-500.0,0.00011184,2]
[346888889,1735342239917,-500.0,0.00011184,2]
[346888891,1735342239926,-500.0,0.00011184,2]
[346888893,1735342239937,-500.0,0.00011184,2]
[346888895,1735342239946,-500.0,0.00011184,2]
[346888897,1735342239956,-500.0,0.00011184,2]
[346888899,1735342239965,-500.0,0.00011184,2]
[346888901,1735342239973,-500.0,0.00011184,2]
[346888903,1735342239982,-500.0,0.00011184,2]
[346888905,1735342239992,-500.0,0.00011184,2]
[346888907,1735342240002,-232.23850124,0.00011184,2]
[346888909,1735342240011,-500.0,0.00011184,2]
[346888911,1735342240021,-500.0,0.00011184,2]
[346888913,1735342240030,-500.0,0.00011184,2]
[346888915,1735342240039,-500.0,0.00011184,2]
[346888917,1735342240048,-500.0,0.00011184,2]
[346888919,1735342240057,-500.0,0.00011184,2]
[346888921,1735342240067,-500.0,0.00011184,2]
[346888923,1735342240076,-500.0,0.00011184,2]
[346888925,1735342240086,-500.0,0.00011184,2]
[346888927,1735342240095,-500.0,0.00011184,2]
[346888929,1735342240103,-500.0,0.00011184,2]
[346888930,1735342240112,-500.0,0.00011184,2]
[346888932,1735342240122,-500.0,0.00011184,2]
[346888935,1735342240131,-768.26,0.00011184,2]
[346888936,1735342240141,-500.0,0.00011184,2]
[346888937,1735342240150,-500.0,0.00011184,2]
[346888938,1735342240159,-500.0,0.00011184,2]
[346888939,1735342240168,-831.91,0.00011184,2]
[346888940,1735342240177,-500.0,0.00011184,2]
[346888941,1735342240187,-500.0,0.00011184,2]
[346888943,1735342240197,-500.0,0.00011184,2]
[346888944,1735342240206,-1007.4,0.00011184,2]
[346888946,1735342240216,-500.0,0.00011184,2]
[346888947,1735342240225,-500.0,0.00011184,2]
[346888948,1735342240234,-500.0,0.00011184,2]
[346888949,1735342240243,-500.0,0.00011184,2]
[346888950,1735342240253,-724.18,0.00011184,2]
[346888951,1735342240262,-500.0,0.00011184,2]
[346888953,1735342240271,-500.0,0.00011184,2]
[346888954,1735342240280,-500.0,0.00011184,2]
[346888955,1735342240289,-1146.05,0.00011184,2]
[346888956,1735342240298,-500.0,0.00011184,2]
[346888957,1735342240307,-500.0,0.00011184,2]
[346888958,1735342240316,-500.0,0.00011184,2]
[346888959,1735342240326,-784.36,0.00011184,2]
[346888960,1735342240335,-500.0,0.00011184,2]
[346888961,1735342240344,-1548.28,0.00011184,2]
[346888962,1735342240354,-264.58569226,0.00011184,2]
[346888963,1735342240363,-500.0,0.00011184,2]
[346888964,1735342240373,-2563.84,0.00011184,2]
[346888965,1735342240382,-500.0,0.00011184,2]
[346888966,1735342240391,-2173.22,0.00011184,2]
[346888967,1735342240400,-500.0,0.00011184,2]
[346888968,1735342240410,-237.49,0.00011184,2]
[346888969,1735342240419,-963.97,0.00011184,2]
[346888970,1735342240433,-500.0,0.00011184,2]
[346888971,1735342240442,-534.19,0.00011184,2]
[346888972,1735342240451,-500.0,0.00011184,2]
[346888973,1735342240460,-500.0,0.00011184,2]
[346888974,1735342240470,-500.0,0.00011184,2]
[346888975,1735342240479,-1039.22,0.00011184,2]
[346888976,1735342240488,-1707.61,0.00011184,2]
[346888977,1735342240498,-500.0,0.00011184,2]
[346888978,1735342240508,-500.0,0.00011184,2]
[346888979,1735342240517,-500.0,0.00011184,2]
[346888980,1735342240526,-500.0,0.00011184,2]
[346888981,1735342240536,-500.0,0.00011184,2]
[346888982,1735342240545,-1000.87,0.00011184,2]
[346888983,1735342240555,-9312.82,0.00011184,2]
[346888984,1735342240564,-500.0,0.00011184,2]
[346888985,1735342240573,-500.0,0.00011184,2]
[346888986,1735342240582,-500.0,0.00011184,2]
[346888987,1735342240593,-1000.0,0.00011185,2]
[346888988,1735342240602,-621.4,0.00011185,2]
[346888989,1735342240612,-500.0,0.00011185,2]
[346888990,1735342240622,-1724.93,0.00011185,2]
[346888991,1735342240632,-872.49,0.00011185,2]
[346888992,1735342240641,-500.0,0.00011239,2]
[346888993,1735342240650,-565.0,0.00011249,2]
[346888994,1735342240659,-1308.008,0.00011249,2]
[346888995,1735342240669,-921.0,0.00011249,2]
[346888996,1735342240678,-819.0,0.00011249,2]
[346888997,1735342240687,-1256.0,0.00011249,2]
[346888998,1735342240697,-3772.0,0.00011249,2]
[346888999,1735342240707,-3685.0,0.00011249,2]
[346889000,1735342240716,-536.0,0.00011249,2]
[346889001,1735342240725,-3889.0,0.00011249,2]
[346889002,1735342240734,-1171.0,0.00011249,2]
[346889003,1735342240744,-150.0,0.00011249,2]
[346889004,1735342240753,-500.0,0.00011259,2]
[346889005,1735342240762,-248.36,0.00011281,2]
[346889006,1735342240771,-234.87,0.00011281,2]
[346889007,1735342240780,-150.99,0.00011281,2]
[346889008,1735342240790,-500.0,0.00011287,2]
[346889009,1735342240800,-438.80355404,0.00011306,2]
[346889010,1735342240809,-500.0,0.00011306,2]
[346889011,1735342240818,-500.0,0.00011306,2]
[346889012,1735342240828,-500.0,0.00011306,2]
[346889013,1735342240837,-500.0,0.00011306,2]
[346889014,1735342240846,-500.0,0.00011306,2]
[346889015,1735342240854,-500.0,0.00011306,2]
[346889016,1735342240865,-500.0,0.00011306,2]
[346889017,1735342240874,-500.0,0.00011306,2]
[346889018,1735342240884,-500.0,0.00011306,2]
[346889019,1735342240893,-500.0,0.00011306,2]
[346889020,1735342240903,-500.0,0.00011306,2]
[346889021,1735342240912,-500.0,0.00011306,2]
[346889022,1735342240921,-500.0,0.00011306,2]
[346889023,1735342240931,-500.0,0.00011306,2]
[346889024,1735342240940,-500.0,0.00011306,2]
[346889025,1735342240950,-500.0,0.00011306,2]
[346889026,1735342240959,-500.0,0.00011306,2]
[346889027,1735342240968,-500.0,0.00011306,2]
[346889028,1735342240978,-237.39168153,0.00011306,2]
[346889029,1735342240988,-500.0,0.00011306,2]
[346889030,1735342240997,-500.0,0.00011306,2]
[346889031,1735342241006,-500.0,0.00011306,2]
[346889032,1735342241016,-500.0,0.00011306,2]
[346889033,1735342241025,-588.59734697,0.00011306,2]
[346889034,1735342241038,-500.0,0.00011306,2]
[346889035,1735342241049,-500.0,0.00011306,2]
[346889036,1735342241062,-500.0,0.00011306,2]
[346889037,1735342241074,-500.0,0.00011306,2]
[346889038,1735342241085,-500.0,0.00011306,2]
[346889039,1735342241096,-500.0,0.00011306,2]
[346889040,1735342241106,-500.0,0.00011306,2]
[346889041,1735342241117,-500.0,0.00011306,2]
[346889042,1735342241126,-500.0,0.00011306,2]
[346889043,1735342241137,-346.32480906,0.00011306,2]
[346889044,1735342241154,-153.67519094,0.00011306,2]
[346889045,1735342241165,-236.43978657,0.00011306,2]
[346889046,1735342241179,-263.56021343,0.00011306,2]
[346889047,1735342241189,-175.40715912,0.00011306,2]
[346889048,1735342241202,-324.59284088,0.00011306,2]
[346889049,1735342241213,-500.0,0.00011306,2]
[346889050,1735342241224,-500.0,0.00011306,2]
[346889052,1735342241236,-500.0,0.00011306,2]
[346889053,1735342241247,-500.0,0.00011306,2]
[346889054,1735342241258,-500.0,0.00011306,2]
[346889055,1735342241270,-500.0,0.00011306,2]
[346889056,1735342241281,-500.0,0.00011306,2]
[346889057,1735342241292,-500.0,0.00011306,2]
[346889058,1735342241303,-500.0,0.00011306,2]
[346889059,1735342241313,-179.96184872,0.00011306,2]
[346889060,1735342241324,-500.0,0.00011306,2]
[346889061,1735342241334,-500.0,0.00011306,2]
[346889062,1735342241344,-500.0,0.00011306,2]
[346889063,1735342241355,-500.0,0.00011306,2]
[346889064,1735342241366,-500.0,0.00011306,2]
[346889065,1735342241378,-299.03802731,0.00011306,2]
[346889066,1735342241390,-500.0,0.00011306,2]
[346889067,1735342241401,-500.0,0.00011306,2]